bitfinex/quotes_SOLUSD_20240621
["timestamp","ask_amount","ask_price","bid_price","bid_amount"]
[1718989334302,20.0,130.71,130.65,6.1229]
[1718989334677,13.6809,130.72,130.61,129.62]
[1718989334982,13.6809,130.72,130.68,6.1216]
[1718989335485,13.6809,130.72,130.67,6.122]
[1718989336799,13.6809,130.72,130.68,6.1217]
[1718989337804,13.6809,130.72,130.69,6.121]
[1718989338003,13.6809,130.72,130.64,45.9717]
[1718989338202,13.6809,130.72,130.69,6.1211]
[1718989339407,13.6809,130.75,130.69,6.1211]
[1718989339596,20.0,130.74,130.69,6.1211]
[1718989339800,20.0,130.74,130.7,6.1208]
[1718989340305,20.0,130.74,130.68,6.1215]
[1718989340598,20.0,130.74,130.66,6.1225]
[1718989340805,20.0,130.74,130.65,6.1231]
[1718989340989,49.62,130.74,130.64,6.1234]
[1718989341193,0.17,130.73,130.65,6.1231]
[1718989341581,20.0,130.74,130.62,100.0]
[1718989341788,20.0,130.74,130.69,6.1211]
[1718989342295,20.0,130.74,130.7,6.1208]
[1718989342690,20.0,130.74,130.67,15.3056]
[1718989342890,20.0,130.74,130.68,6.1214]
[1718989343088,20.0,130.74,130.69,6.1213]
[1718989344006,13.6809,130.75,130.7,6.1207]
[1718989345290,7.96707722,130.77,130.73,6.1193]
[1718989345487,13.6809,130.78,130.66,152.8888]
[1718989345488,13.6809,130.78,130.71,15.3002]
[1718989345820,13.6809,130.78,130.75,6.1184]
[1718989346193,13.6809,130.78,130.73,6.1194]
[1718989346393,13.6809,130.78,130.74,6.1189]
[1718989346592,13.6809,130.81,130.75,6.1184]
[1718989346819,20.0,130.8,130.75,6.1184]
[1718989347784,13.6809,130.81,130.72,52.762]
[1718989347988,8.83077199,130.82,130.72,52.762]
[1718989347989,8.83077199,130.82,130.78,6.1169]
[1718989348201,0.8583872,130.82,130.74,15.2974]
[1718989348407,0.8583872,130.82,130.72,22.1632]
[1718989348711,0.8583872,130.82,130.76,6.1179]
[1718989349423,0.8583872,130.82,130.73,15.2983]
[1718989349424,0.8583872,130.82,130.74,6.1187]
[1718989349714,0.8583872,130.82,130.76,6.118]
[1718989349894,0.8583872,130.82,130.75,6.1183]
[1718989350604,0.8583872,130.82,130.76,6.118]
[1718989350810,0.8583872,130.82,130.72,37.4622]
[1718989350811,0.8583872,130.82,130.77,6.1174]
[1718989351328,0.8583872,130.82,130.76,6.1179]
[1718989351911,0.8583872,130.82,130.75,6.1184]
[1718989352708,0.8583872,130.82,130.72,6.1197]
[1718989352912,13.8509,130.81,130.71,6.1201]
[1718989353219,20.0,130.8,130.71,6.1201]
[1718989353520,0.17,130.79,130.73,6.1194]
[1718989354228,20.0,130.8,130.69,46.4579]
[1718989354391,20.0,130.8,130.75,6.1182]
[1718989354908,20.0,130.8,130.74,6.1188]
[1718989355399,20.0,130.8,130.75,6.1184]
[1718989355804,20.0,130.8,130.76,6.1178]
[1718989356218,20.0,130.8,130.75,6.1182]
[1718989357013,20.0,130.8,130.76,6.1178]
[1718989357312,13.6809,130.81,130.77,6.1175]
[1718989357504,13.6809,130.81,130.76,6.1178]
[1718989358309,13.6809,130.81,130.77,6.1172]
[1718989358794,13.6809,130.81,130.78,6.117]
[1718989359719,13.6809,130.81,130.76,6.1177]
[1718989359921,13.6809,130.81,130.77,6.1174]
[1718989360601,13.6809,130.81,130.73,15.2986]
[1718989360800,13.6809,130.81,130.76,6.1179]
[1718989361713,13.6809,130.81,130.75,6.1183]
[1718989361917,13.6809,130.81,130.73,15.2986]
[1718989361918,20.17,130.8,130.73,6.1194]
[1718989362619,20.17,130.8,130.69,15.8524]
[1718989362820,20.17,130.8,130.73,6.1192]
[1718989363397,20.17,130.8,130.72,6.1197]
[1718989364711,20.17,130.8,130.73,6.1194]
[1718989365212,20.17,130.8,130.72,6.1197]
[1718989365797,20.17,130.8,130.7,6.1204]
[1718989366006,13.6809,130.79,130.69,6.121]
[1718989366202,20.0,130.78,130.69,6.121]
[1718989366415,0.17,130.77,130.69,6.121]
[1718989367022,0.17,130.77,130.7,6.1208]
[1718989367412,0.17,130.77,130.71,6.1204]
[1718989367616,20.0,130.78,130.71,6.1201]
[1718989367824,20.0,130.78,130.69,15.3033]
[1718989368126,20.0,130.78,130.73,6.1192]
[1718989368943,13.6809,130.79,130.74,6.1187]
[1718989369110,13.6809,130.79,130.76,6.1177]
[1718989369310,13.6809,130.79,130.71,21.374]
[1718989369631,13.6809,130.79,130.74,6.1187]
[1718989370511,13.6809,130.79,130.73,6.1193]
[1718989370710,13.6809,130.79,130.69,15.303]
[1718989370918,20.0,130.78,130.71,6.1201]
[1718989371117,20.0,130.78,130.7,6.1206]
[1718989371312,0.17,130.77,130.66,16.1597]
[1718989373033,0.17,130.77,130.69,6.1211]
[1718989373812,13.6809,130.76,130.63,60.1346]
[1718989374018,20.0,130.75,130.66,6.1225]
[1718989374217,0.17,130.74,130.66,6.1225]
[1718989374642,0.17,130.74,130.67,6.1222]
[1718989374848,0.17,130.74,130.68,6.1217]
[1718989376046,20.0,130.75,130.66,15.3058]
[1718989376417,20.0,130.75,130.69,6.1211]
[1718989376822,20.0,130.75,130.65,0.34]
[1718989377023,20.0,130.75,130.69,6.1213]
[1718989377416,20.0,130.75,130.66,15.306]
[1718989377618,20.0,130.75,130.69,6.1209]
[1718989378019,20.0,130.75,130.66,15.306]
[1718989378240,20.0,130.75,130.68,6.1215]
[1718989380040,20.0,130.75,130.69,6.1211]
[1718989380235,20.0,130.75,130.66,15.306]
[1718989380461,20.0,130.75,130.7,6.1206]
[1718989380974,20.0,130.75,130.69,6.1213]
[1718989381634,20.0,130.75,130.66,6.1224]
[1718989381853,0.17,130.74,130.67,6.1222]
[1718989382069,0.17,130.74,130.68,6.1215]
[1718989382551,0.17,130.74,130.65,15.3072]
[1718989382746,0.17,130.74,130.66,6.1225]
[1718989385179,13.6809,130.73,130.62,22.6165]
[1718989385464,20.17,130.72,130.64,6.1236]
[1718989387352,20.17,130.72,130.63,6.1239]
[1718989387738,20.17,130.72,130.62,6.1243]
[1718989387939,13.6809,130.7,130.61,6.1248]
[1718989388347,20.17,130.69,130.61,6.1248]
[1718989388754,20.17,130.69,130.62,6.1245]
[1718989390864,20.17,130.69,130.61,6.1248]
[1718989391448,20.17,130.69,130.6,6.1254]
[1718989391653,20.17,130.69,130.55,22.7703]
[1718989391654,13.6809,130.67,130.55,22.7703]
[1718989391842,20.17,130.66,130.56,6.1272]
[1718989392038,20.17,130.66,130.57,6.1266]
[1718989392242,20.17,130.66,130.58,6.1264]
[1718989392448,20.17,130.66,130.56,6.1271]
[1718989392449,43.2009,130.65,130.56,6.1271]
[1718989392661,46.25152015,130.65,130.54,6.1282]
[1718989392869,20.17,130.64,130.54,6.1282]
[1718989393260,20.17,130.64,130.55,6.1279]
[1718989394063,20.17,130.64,130.54,6.1282]
[1718989395765,58.6809,130.63,130.5,15.3253]
[1718989395961,20.0,130.62,130.51,15.3236]
[1718989396267,0.17,130.61,130.53,6.1287]
[1718989398648,0.17,130.61,130.52,6.1291]
[1718989399067,0.17,130.61,130.53,6.1287]
[1718989399566,0.17,130.61,130.49,75.4997]
[1718989399567,0.17,130.61,130.52,6.1291]
[1718989400149,0.17,130.61,130.53,6.1288]
[1718989401069,49.52,130.62,130.55,6.1278]
[1718989401376,49.52,130.62,130.53,6.1287]
[1718989401758,57.50641256,130.62,130.53,6.1286]
[1718989402076,57.50641256,130.62,130.52,6.1291]
[1718989402374,0.17,130.61,130.52,6.1291]
[1718989402752,0.17,130.61,130.53,6.1288]
[1718989404580,0.17,130.61,130.52,6.1291]
[1718989405755,0.17,130.61,130.53,6.1286]
[1718989406665,0.17,130.61,130.52,6.129]
[1718989409373,27.98641256,130.62,130.49,160.1732]
[1718989409578,27.98641256,130.62,130.55,6.1276]
[1718989409873,27.98641256,130.62,130.53,6.1285]
[1718989410567,27.98641256,130.62,130.5,0.17]
[1718989410768,13.6809,130.61,130.5,6.1299]
[1718989410953,20.0,130.6,130.5,6.1299]
[1718989411157,0.17,130.59,130.5,6.1299]
[1718989411372,0.17,130.59,130.51,6.1297]
[1718989412078,7.9919455,130.58,130.51,6.1297]
[1718989412279,20.0,130.57,130.51,6.1297]
[1718989412577,20.17,130.57,130.51,6.1297]
[1718989412772,20.17,130.57,130.48,21.7614]
[1718989412974,20.0,130.57,130.53,6.1288]
[1718989413369,27.99177073,130.6,130.53,6.1288]
[1718989413562,0.17,130.59,130.54,6.1283]
[1718989413770,20.0,130.6,130.55,9.88]
[1718989413971,29.88,130.6,130.55,9.88]
[1718989414585,29.88,130.6,130.54,9.88]
[1718989414586,9.88,130.59,130.54,9.88]
[1718989414764,20.0,130.58,130.54,9.88]
[1718989415166,20.0,130.58,130.54,16.0083]
[1718989415784,13.6809,130.61,130.56,9.88]
[1718989415961,13.6809,130.61,130.57,9.88]
[1718989416160,13.6809,130.61,130.57,16.0067]
[1718989416774,13.6809,130.61,130.58,16.0064]
[1718989416965,13.6809,130.61,130.58,9.88]
[1718989417163,13.6809,130.61,130.57,9.88]
[1718989417565,13.6809,130.61,130.6,6.1255]
[1718989417790,13.6809,130.61,130.58,16.0063]
[1718989418777,13.6809,130.61,130.58,9.88]
[1718989419085,13.6809,130.61,130.59,6.1259]
[1718989419597,13.6809,130.64,130.6,16.0055]
[1718989419769,13.6809,130.64,130.6,9.88]
[1718989419770,20.0,130.63,130.6,9.88]
[1718989420164,20.0,130.63,130.6,16.0054]
[1718989420372,20.0,130.63,130.6,9.88]
[1718989420757,20.0,130.63,130.6,16.0055]
[1718989420957,13.6809,130.64,130.61,6.1249]
[1718989421161,13.6809,130.64,130.61,9.88]
[1718989422263,13.6809,130.64,130.61,16.005]
[1718989422463,21.67563009,130.68,130.57,130.6343]
[1718989422665,13.6809,130.68,130.64,9.88]
[1718989423184,9.88,130.67,130.62,9.88]
[1718989423379,9.88,130.67,130.61,6.1248]
[1718989423380,13.6809,130.68,130.61,6.1248]
[1718989423885,0.17,130.67,130.61,6.1248]
[1718989424458,20.17,130.67,130.61,6.1248]
[1718989425391,20.17,130.67,130.58,6.1261]
[1718989426083,20.17,130.67,130.56,15.3184]
[1718989426293,20.17,130.67,130.6,6.1253]
[1718989427384,20.17,130.67,130.61,6.1251]
[1718989429273,260.4,130.65,130.61,6.1249]
[1718989431371,20.0,130.67,130.62,6.1245]
[1718989431768,20.0,130.67,130.61,15.3126]
[1718989432369,20.0,130.67,130.62,6.1244]
[1718989433199,20.0,130.67,130.57,75.541]
[1718989433497,20.0,130.67,130.58,0.17]
[1718989433881,20.0,130.67,130.6,6.1253]
[1718989434877,20.0,130.67,130.57,6.1269]
[1718989435097,0.17,130.66,130.55,15.3197]
[1718989435296,0.17,130.66,130.55,44.9097]
[1718989435886,0.17,130.66,130.58,6.1264]
[1718989436065,0.17,130.66,130.59,6.1258]
[1718989436894,0.17,130.66,130.58,6.1262]
[1718989437391,13.6809,130.65,130.53,21.782]
[1718989437692,13.6809,130.63,130.54,6.1279]
[1718989437890,13.6809,130.63,130.52,29.59]
[1718989437891,20.0,130.62,130.53,6.1286]
[1718989438094,0.17,130.61,130.53,6.1286]
[1718989438682,13.6809,130.6,130.53,6.1286]
[1718989438886,20.0,130.59,130.53,6.1286]
[1718989439285,20.0,130.59,130.54,6.1282]
[1718989440187,20.0,130.59,130.53,6.1286]
[1718989440382,0.17,130.58,130.51,6.1295]
[1718989440581,0.17,130.58,130.52,6.1292]
[1718989440994,20.0,130.59,130.5,15.3247]
[1718989441190,20.0,130.59,130.53,6.1286]
[1718989441191,0.17,130.58,130.53,6.1286]
[1718989441780,0.17,130.58,130.51,6.1295]
[1718989441986,13.6809,130.57,130.5,6.13]
[1718989442485,20.0,130.56,130.5,6.13]
[1718989442684,20.0,130.56,130.51,6.1295]
[1718989442900,20.0,130.56,130.5,6.13]
[1718989443102,20.0,130.56,130.49,6.1306]
[1718989443301,20.0,130.56,130.49,6.1304]
[1718989443509,20.0,130.56,130.48,15.3277]
[1718989443713,20.0,130.56,130.51,6.1295]
[1718989444008,20.0,130.56,130.53,6.1288]
[1718989444178,20.0,130.56,130.52,6.129]
[1718989444381,13.6809,130.57,130.53,6.1288]
[1718989444988,13.6809,130.57,130.49,29.59]
[1718989445285,13.6809,130.57,130.52,6.1291]
[1718989445789,13.6809,130.57,130.53,6.1287]
[1718989445984,13.6809,130.57,130.52,6.1291]
[1718989446185,13.6809,130.57,130.51,6.1295]
[1718989446387,20.0,130.56,130.47,36.5727]
[1718989446680,20.0,130.56,130.5,6.1301]
[1718989446909,20.0,130.56,130.51,6.1296]
[1718989447105,20.0,130.56,130.47,21.244]
[1718989447294,20.0,130.56,130.52,6.129]
[1718989447479,13.6809,130.57,130.47,51.9017]
[1718989447683,13.6809,130.57,130.53,6.1286]
[1718989447880,13.6809,130.57,130.52,6.129]
[1718989449105,20.0,130.56,130.51,6.1296]
[1718989449445,20.0,130.56,130.52,9.88]
[1718989449579,20.0,130.56,130.47,21.244]
[1718989449916,20.0,130.56,130.51,9.88]
[1718989450406,29.88,130.56,130.51,9.88]
[1718989450583,20.0,130.56,130.51,16.0097]
[1718989451096,20.0,130.56,130.52,9.88]
[1718989451398,20.0,130.56,130.52,6.1293]
[1718989452003,20.0,130.56,130.51,6.1296]
[1718989452206,20.0,130.56,130.5,6.1301]
[1718989452501,20.0,130.56,130.48,29.64]
[1718989452704,0.17,130.55,130.45,29.64]
[1718989453405,20.0,130.56,130.45,29.64]
[1718989453589,20.0,130.56,130.52,6.1291]
[1718989454186,20.0,130.56,130.51,6.1295]
[1718989455308,13.6809,130.57,130.52,6.1292]
[1718989455503,14.05998464,130.61,130.48,29.64]
[1718989455504,13.6809,130.6,130.51,29.64]
[1718989455809,20.0,130.59,130.54,6.1281]
[1718989456303,13.6809,130.6,130.54,6.1281]
[1718989458486,13.6809,130.6,130.52,0.17]
[1718989458687,13.6809,130.6,130.55,6.1278]
[1718989459298,7.9886132,130.63,130.58,6.1262]
[1718989459516,274.0809,130.64,130.54,29.64]
[1718989459517,274.0809,130.64,130.59,6.1259]
[1718989459816,20.0,130.63,130.59,6.1259]
[1718989460315,20.0,130.63,130.55,15.3188]
[1718989460509,20.0,130.63,130.56,6.1273]
[1718989460696,20.0,130.63,130.54,29.64]
[1718989460898,20.0,130.63,130.58,6.1261]
[1718989461511,20.0,130.63,130.55,15.3189]
[1718989461716,20.0,130.63,130.58,6.1263]
[1718989462315,20.0,130.63,130.57,6.1267]
[1718989462826,20.0,130.63,130.58,6.1265]
[1718989463023,13.6809,130.64,130.59,6.126]
[1718989463818,13.6809,130.64,130.6,6.1255]
[1718989463997,13.6809,130.64,130.56,37.316]
[1718989464198,13.6809,130.64,130.59,6.1258]
[1718989465600,13.6809,130.64,130.56,15.3177]
[1718989465808,13.6809,130.64,130.58,6.1262]
[1718989466420,0.17,130.63,130.57,6.1268]
[1718989466728,0.17,130.63,130.58,6.1264]
[1718989467022,13.6809,130.64,130.58,6.1264]
[1718989467413,0.17,130.63,130.58,6.1264]
[1718989468119,13.6809,130.64,130.54,60.2813]
[1718989468321,13.6809,130.64,130.6,6.1254]
[1718989468510,13.6809,130.64,130.61,6.1248]
[1718989468821,21.67201189,130.67,130.58,15.3155]
[1718989469012,20.0,130.66,130.62,6.1246]
[1718989469418,13.6809,130.67,130.63,6.124]
[1718989469725,13.6809,130.67,130.62,6.1244]
[1718989472826,13.6809,130.67,130.61,6.1248]
[1718989473041,13.6809,130.67,130.58,6.4044]
[1718989473322,20.17,130.66,130.59,6.1258]
[1718989473822,20.17,130.66,130.61,6.125]
[1718989474625,20.17,130.66,130.6,6.1253]
[1718989475328,20.17,130.66,130.61,6.125]
[1718989475503,20.0,130.66,130.61,6.125]
[1718989475831,20.0,130.66,130.62,6.1246]
[1718989476928,20.0,130.66,130.61,6.1249]
[1718989477712,20.0,130.66,130.62,6.1245]
[1718989478108,13.6809,130.67,130.62,6.1245]
[1718989478717,13.6809,130.67,130.58,15.3154]
[1718989478718,13.6809,130.67,130.63,6.124]
[1718989479913,7.9896955,130.7,130.66,6.1225]
[1718989480116,13.6809,130.72,130.66,6.1225]
[1718989480417,13.6809,130.72,130.64,6.1235]
[1718989480613,13.6809,130.72,130.63,6.1239]
[1718989481329,13.6809,130.72,130.64,6.1236]
[1718989481843,0.17,130.71,130.64,6.1236]
[1718989482217,20.17,130.71,130.64,6.1236]
[1718989483316,13.6809,130.7,130.62,6.1244]
[1718989483515,13.6809,130.7,130.61,6.1248]
[1718989483720,20.17,130.69,130.61,6.1248]
[1718989484133,20.17,130.69,130.58,60.5072]
[1718989484430,20.17,130.69,130.57,6.3871]
[1718989484431,49.81,130.69,130.57,6.3871]
[1718989485018,52.86062015,130.69,130.57,6.3871]
[1718989485940,52.86062015,130.69,130.6,6.1255]
[1718989486918,13.6809,130.68,130.6,6.1255]
[1718989487118,20.0,130.67,130.6,6.1255]
[1718989487440,0.17,130.66,130.6,6.1255]
[1718989488323,13.6809,130.65,130.56,15.3182]
[1718989488633,13.6809,130.65,130.58,6.1262]
[1718989488634,20.0,130.64,130.58,6.1262]
[1718989488829,20.17,130.64,130.58,6.1262]
[1718989489030,20.17,130.64,130.57,15.3166]
[1718989489228,20.17,130.64,130.6,6.1252]
[1718989489636,20.17,130.64,130.57,15.3166]
[1718989489637,20.0,130.64,130.57,15.3166]
[1718989489822,20.0,130.64,130.6,6.1254]
[1718989490638,20.0,130.64,130.61,6.125]
[1718989492034,20.0,130.64,130.6,6.1253]
[1718989494147,20.0,130.64,130.59,6.1258]
[1718989496326,20.0,130.64,130.6,6.1255]
[1718989496550,20.0,130.64,130.59,6.1258]
[1718989498028,20.0,130.64,130.6,6.1255]
[1718989498441,20.0,130.64,130.61,6.125]
[1718989498652,13.6809,130.65,130.58,29.64]
[1718989498952,13.6809,130.65,130.63,6.1237]
[1718989499455,13.6809,130.68,130.61,15.3119]
[1718989499626,268.38651558,130.71,130.64,29.64]
[1718989499823,13.6809,130.72,130.68,6.1214]
[1718989500027,13.6809,130.72,130.69,6.1211]
[1718989500229,13.6809,130.72,130.63,15.4094]
[1718989500430,13.6809,130.72,130.62,6.5967]
[1718989500748,13.6809,130.72,130.6,15.4094]
[1718989500951,13.6809,130.72,130.62,6.1243]
[1718989501247,13.6809,130.72,130.6,15.4094]
[1718989501457,16.73152015,130.72,130.6,15.4094]
[1718989501656,20.17,130.71,130.61,6.1248]
[1718989501837,20.17,130.71,130.62,6.1245]
[1718989503054,20.17,130.71,130.63,6.1241]
[1718989503237,20.17,130.71,130.6,15.4094]
[1718989503853,20.17,130.71,130.64,6.1234]
[1718989504055,20.0,130.71,130.67,6.1221]
[1718989504264,16.73152015,130.72,130.68,6.1216]
[1718989504569,16.73152015,130.72,130.67,6.1221]
[1718989504868,16.73152015,130.72,130.66,6.1225]
[1718989505451,16.73152015,130.72,130.65,6.1231]
[1718989505851,20.0,130.71,130.61,29.81]
[1718989506057,20.0,130.71,130.61,6.1247]
[1718989506359,0.17,130.7,130.62,6.1243]
[1718989506529,0.17,130.7,130.6,6.3584]
[1718989506530,0.17,130.7,130.63,6.124]
[1718989506729,0.17,130.7,130.64,6.1235]
[1718989506951,0.17,130.7,130.62,15.3114]
[1718989507159,0.17,130.7,130.64,6.1234]
[1718989507362,0.17,130.7,130.63,6.1239]
[1718989507859,0.17,130.7,130.64,6.1236]
[1718989508061,0.17,130.7,130.65,6.1232]
[1718989508363,20.0,130.71,130.62,29.64]
[1718989508558,13.6809,130.72,130.66,6.1225]
[1718989509066,13.6809,130.72,130.63,15.3102]
[1718989509067,13.6809,130.72,130.68,6.1215]
[1718989509447,13.6809,130.72,130.67,6.1218]
[1718989509648,13.6809,130.72,130.64,15.3083]
[1718989509958,13.6809,130.72,130.65,29.81]
[1718989510847,13.6809,130.72,130.67,6.1221]
[1718989511047,13.6809,130.72,130.68,6.1217]
[1718989511434,13.6809,130.76,130.65,29.81]
[1718989511638,20.0,130.75,130.69,6.1212]
[1718989511845,20.0,130.75,130.66,15.4759]
[1718989512044,20.0,130.75,130.67,0.17]
[1718989512441,20.0,130.75,130.69,6.1211]
[1718989512641,13.6809,130.76,130.73,6.1194]
[1718989512862,13.6809,130.76,130.72,6.1197]
[1718989513040,13.6809,130.76,130.68,29.64]
[1718989513041,13.6809,130.76,130.71,6.1202]
[1718989513242,13.6809,130.76,130.68,29.64]
[1718989513442,13.6809,130.76,130.73,6.1192]
[1718989513663,13.6809,130.79,130.74,6.1189]
[1718989513847,13.6809,130.79,130.7,15.3011]
[1718989514161,13.6809,130.79,130.73,6.1192]
[1718989514342,13.6809,130.79,130.74,6.1188]
[1718989515541,20.0,130.78,130.71,6.1201]
[1718989516062,20.0,130.78,130.72,6.1198]
[1718989516249,20.0,130.78,130.73,6.1194]
[1718989516450,20.0,130.78,130.69,31.4759]
[1718989516658,20.0,130.78,130.7,0.17]
[1718989516946,20.0,130.78,130.7,15.4714]
[1718989517566,20.0,130.78,130.74,6.1187]
[1718989517860,20.0,130.78,130.74,6.1186]
[1718989518164,13.6809,130.79,130.73,15.2986]
[1718989518341,0.8583872,130.82,130.77,6.1172]
[1718989518546,0.8583872,130.82,130.77,6.1173]
[1718989518747,0.8583872,130.82,130.78,6.1171]
[1718989519768,0.8583872,130.82,130.77,6.1174]
[1718989520547,0.8583872,130.82,130.75,15.2955]
[1718989520548,0.8583872,130.82,130.78,6.117]
[1718989521077,0.8583872,130.82,130.77,6.1174]
[1718989521557,0.8583872,130.82,130.79,6.1166]
[1718989521876,0.8583872,130.82,130.78,6.1168]
[1718989522277,0.8583872,130.82,130.81,6.1157]
[1718989522775,0.8583872,130.82,130.81,6.4557]
[1718989524075,0.8583872,130.82,130.81,21.5208]
[1718989524252,0.8583872,130.82,130.81,21.3508]
[1718989524865,0.8583872,130.82,130.81,21.5208]
[1718989526257,8.72e-05,130.82,130.81,21.5208]
[1718989526465,33.6809,130.93,130.89,6.1119]
[1718989526669,33.6809,130.93,130.9,6.1113]
[1718989526670,13.6809,130.93,130.9,6.1113]
[1718989526964,0.8583872,130.95,130.86,29.64]
[1718989527163,0.8583872,130.95,130.88,6.1123]
[1718989527486,0.8583872,130.95,130.88,6.112]
[1718989527860,0.8583872,130.95,130.85,15.4544]
[1718989528058,0.8583872,130.95,130.87,6.1126]
[1718989528458,0.8583872,130.95,130.85,15.4544]
[1718989528671,0.8583872,130.95,130.89,6.1119]
[1718989529075,0.8583872,130.95,130.88,6.1122]
[1718989529271,0.8583872,130.95,130.89,6.1119]
[1718989529765,0.8583872,130.95,130.9,6.1113]
[1718989529966,0.8583872,130.95,130.89,6.1119]
[1718989530166,0.8583872,130.95,130.88,6.1122]
[1718989530766,0.8583872,130.95,130.89,6.1119]
[1718989531181,0.8583872,130.95,130.88,15.2805]
[1718989531487,0.8583872,130.95,130.89,6.1118]
[1718989533191,0.8583872,130.95,130.88,6.1123]
[1718989533361,0.8583872,130.95,130.86,15.2832]
[1718989533564,0.8583872,130.95,130.89,6.1117]
[1718989534470,0.8583872,130.95,130.88,6.1123]
[1718989534670,0.8583872,130.95,130.89,6.1119]
[1718989535074,0.8583872,130.95,130.9,6.1115]
[1718989535764,0.8583872,130.95,130.89,15.2799]
[1718989535995,0.8583872,130.95,130.93,6.11]
[1718989536200,0.8583872,130.95,130.92,6.1103]
[1718989536773,0.8583872,130.95,130.93,6.1099]
[1718989537275,0.8583872,130.95,130.9,15.2778]
[1718989537475,0.8583872,130.95,130.93,6.11]
[1718989538086,0.8583872,130.95,130.94,6.1096]
[1718989539101,0.8583872,130.95,130.93,6.1101]
[1718989539572,0.8583872,130.95,130.94,6.1096]
[1718989540982,0.8583872,130.95,130.93,6.1098]
[1718989541167,0.8583872,130.95,130.92,6.1103]
[1718989541372,0.8583872,130.95,130.91,6.1107]
[1718989542690,0.8583872,130.95,130.9,6.1113]
[1718989542877,0.8583872,130.95,130.91,6.1108]
[1718989543394,0.8583872,130.95,130.92,6.1101]
[1718989543581,0.8583872,130.95,130.91,6.1108]
[1718989543782,0.8583872,130.95,130.87,30.608]
[1718989544088,0.8583872,130.95,130.89,6.1116]
[1718989544588,13.681,130.94,130.89,6.1116]
[1718989544968,13.681,130.94,130.84,21.4383]
[1718989545168,13.681,130.94,130.85,0.17]
[1718989545473,13.681,130.94,130.88,6.1122]
[1718989547292,20.0,130.93,130.86,6.1131]
[1718989547794,20.0,130.93,130.84,6.1537]
[1718989548000,20.0,130.93,130.88,6.1121]
[1718989549377,20.0,130.93,130.89,6.1119]
[1718989549690,20.0,130.93,130.84,6.1537]
[1718989549691,20.0,130.93,130.84,15.2854]
[1718989549901,20.0,130.93,130.86,6.1129]
[1718989550785,20.0,130.93,130.84,6.1141]
[1718989550985,0.17,130.92,130.83,6.1147]
[1718989551283,13.681,130.91,130.81,15.2886]
[1718989551479,20.0,130.9,130.81,15.2886]
[1718989552290,20.0,130.9,130.85,6.1137]
[1718989552701,20.0,130.9,130.84,6.114]
[1718989553289,20.0,130.9,130.85,0.17]
[1718989553687,20.0,130.9,130.86,6.1132]
[1718989553882,13.681,130.91,130.86,6.1132]
[1718989554900,14.5393872,130.95,130.89,15.2794]
[1718989555217,20.0,130.94,130.87,15.2819]
[1718989555919,20.0,130.94,130.88,6.1122]
[1718989557018,20.0,130.94,130.86,29.64]
[1718989557199,0.17,130.93,130.86,6.1133]